[Event "Early-Titled-Tuesday-Blitz-July-09-2024"]
[Site "Chess.com"]
[Date "2024.07.09"]
[Round "4"]
[White "mwpchess"]
[Black "Naruto75_3"]
[Result "1-0"]
[WhiteElo "2761"]
[BlackElo "2543"]
[TimeControl "180+1"]
[EndTime "8:38:46 PDT"]
[Termination "mwpchess won by resignation"]

1. e4 {[%clk 0:03:00.9]} 1... c5 {[%clk 0:02:57.6]} 2. Be2 {[%clk 0:03:00.5]}
2... d5 {[%clk 0:02:54.5]} 3. d3 {[%clk 0:02:59.5]} 3... Nc6 {[%clk 0:02:53.1]}
4. f4 {[%clk 0:02:59]} 4... g6 {[%clk 0:02:51.4]} 5. Nf3 {[%clk 0:02:58.5]} 5...
Bg7 {[%clk 0:02:50.7]} 6. c3 {[%clk 0:02:58.1]} 6... Nf6 {[%clk 0:02:49.9]} 7.
e5 {[%clk 0:02:57.8]} 7... Nd7 {[%clk 0:02:48.6]} 8. d4 {[%clk 0:02:57.4]} 8...
O-O {[%clk 0:02:48.2]} 9. Be3 {[%clk 0:02:55.8]} 9... cxd4 {[%clk 0:02:46.1]}
10. cxd4 {[%clk 0:02:55.5]} 10... f6 {[%clk 0:02:41.4]} 11. O-O {[%clk
0:02:54.7]} 11... Qb6 {[%clk 0:02:39.6]} 12. Qd2 {[%clk 0:02:54.4]} 12... e6
{[%clk 0:02:36.8]} 13. Nc3 {[%clk 0:02:52.5]} 13... a6 {[%clk 0:02:34.7]} 14.
Rac1 {[%clk 0:02:33.5]} 14... Rf7 {[%clk 0:02:27.4]} 15. exf6 {[%clk 0:02:30.4]}
15... Nxf6 {[%clk 0:02:25.4]} 16. Ne5 {[%clk 0:02:30.2]} 16... Rf8 {[%clk
0:02:23.3]} 17. Na4 {[%clk 0:02:20]} 17... Qd8 {[%clk 0:02:21.5]} 18. Nxc6
{[%clk 0:02:13.1]} 18... bxc6 {[%clk 0:02:22.4]} 19. Nc5 {[%clk 0:02:12]} 19...
Qe7 {[%clk 0:02:19.3]} 20. Bd3 {[%clk 0:02:11.2]} 20... Nd7 {[%clk 0:02:15.8]}
21. b4 {[%clk 0:02:03.6]} 21... Nf6 {[%clk 0:02:10.2]} 22. h3 {[%clk 0:02:02.5]}
22... Nh5 {[%clk 0:02:09.3]} 23. Qe1 {[%clk 0:01:47.5]} 23... Rb8 {[%clk
0:02:06.2]} 24. g4 {[%clk 0:01:45.5]} 24... Nf6 {[%clk 0:02:03.6]} 25. Bf2
{[%clk 0:01:45.1]} 25... Ne8 {[%clk 0:02:00.4]} 26. Kg2 {[%clk 0:01:41.7]} 26...
Nd6 {[%clk 0:01:56.5]} 27. a3 {[%clk 0:01:36.9]} 27... Rxf4 {[%clk 0:01:54.9]}
28. Bh4 {[%clk 0:01:28.3]} 28... Rxf1 {[%clk 0:01:54.6]} 29. Bxf1 {[%clk
0:01:22.2]} 29... Qe8 {[%clk 0:01:50.1]} 30. Bg3 {[%clk 0:01:14.5]} 30... Bf8
{[%clk 0:01:49.4]} 31. Rc3 {[%clk 0:01:09]} 31... Ra8 {[%clk 0:01:46.7]} 32. Rf3
{[%clk 0:01:07.6]} 32... a5 {[%clk 0:01:45.8]} 33. bxa5 {[%clk 0:01:06.9]} 33...
Qd8 {[%clk 0:01:39.7]} 34. h4 {[%clk 0:01:00.6]} 34... Ne4 {[%clk 0:01:31.8]}
35. Nxe4 {[%clk 0:00:59.2]} 35... dxe4 {[%clk 0:01:32.7]} 36. Qxe4 {[%clk
0:00:58.4]} 36... Rxa5 {[%clk 0:01:33.2]} 37. h5 {[%clk 0:00:53.1]} 37... Qd5
{[%clk 0:01:30.7]} 38. Qf4 {[%clk 0:00:48.3]} 38... Qxf3+ {[%clk 0:01:10]} 39.
Qxf3 {[%clk 0:00:46.5]} 39... Rxa3 {[%clk 0:01:07.9]} 40. Qxc6 {[%clk
0:00:46.1]} 40... Ra2+ {[%clk 0:01:04.7]} 41. Kh3 {[%clk 0:00:44.3]} 41... gxh5
{[%clk 0:01:01.7]} 42. Qxc8 {[%clk 0:00:43.8]} 42... hxg4+ {[%clk 0:01:01.3]}
43. Kxg4 {[%clk 0:00:44]} 43... Kf7 {[%clk 0:01:01.7]} 44. Bc4 {[%clk
0:00:43.2]} 1-0

[Event "Early-Titled-Tuesday-Blitz-July-09-2024"]
[Site "Chess.com"]
[Date "2024.07.09"]
[Round "4"]
[White "ShimogaTactician"]
[Black "SuanTiltado"]
[Result "0-1"]
[WhiteElo "2524"]
[BlackElo "2373"]
[TimeControl "180+1"]
[EndTime "8:38:47 PDT"]
[Termination "SuanTiltado won by resignation"]

1. Nf3 {[%clk 0:02:56.1]} 1... Nf6 {[%clk 0:02:56.6]} 2. c4 {[%clk 0:02:53.2]}
2... e6 {[%clk 0:02:56.4]} 3. Nc3 {[%clk 0:02:53.6]} 3... d5 {[%clk 0:02:57.3]}
4. d4 {[%clk 0:02:54]} 4... a5 {[%clk 0:02:57]} 5. Bg5 {[%clk 0:02:53.3]} 5...
c6 {[%clk 0:02:54.2]} 6. cxd5 {[%clk 0:02:49.6]} 6... exd5 {[%clk 0:02:53.3]} 7.
Qc2 {[%clk 0:02:49.4]} 7... Be7 {[%clk 0:02:53.5]} 8. e3 {[%clk 0:02:48.7]} 8...
O-O {[%clk 0:02:54]} 9. Bd3 {[%clk 0:02:49.2]} 9... Nbd7 {[%clk 0:02:54.4]} 10.
h3 {[%clk 0:02:48]} 10... h6 {[%clk 0:02:54.9]} 11. Bf4 {[%clk 0:02:47.9]} 11...
Re8 {[%clk 0:02:53.7]} 12. Ne5 {[%clk 0:02:43.3]} 12... Nxe5 {[%clk 0:02:51.3]}
13. dxe5 {[%clk 0:02:42.3]} 13... Nd7 {[%clk 0:02:46.8]} 14. Bh2 {[%clk
0:02:37.2]} 14... Bh4 {[%clk 0:02:42.1]} 15. g3 {[%clk 0:02:32.8]} 15... Be7
{[%clk 0:01:52.5]} 16. f4 {[%clk 0:02:26.6]} 16... Nc5 {[%clk 0:01:47.9]} 17.
Bh7+ {[%clk 0:02:14.3]} 17... Kh8 {[%clk 0:01:45.5]} 18. O-O-O {[%clk
0:02:15.2]} 18... Bxh3 {[%clk 0:01:28.8]} 19. Bf5 {[%clk 0:02:13.2]} 19... Bxf5
{[%clk 0:00:40.4]} 20. Qxf5 {[%clk 0:02:14.1]} 20... Kg8 {[%clk 0:00:40]} 21. g4
{[%clk 0:01:54.2]} 21... a4 {[%clk 0:00:37.8]} 22. g5 {[%clk 0:01:53.5]} 22...
g6 {[%clk 0:00:17.1]} 23. Qc2 {[%clk 0:01:53.6]} 23... h5 {[%clk 0:00:16.7]} 24.
f5 {[%clk 0:01:53.2]} 24... Kh7 {[%clk 0:00:14.4]} 25. f6 {[%clk 0:01:50]} 25...
Bf8 {[%clk 0:00:13.8]} 26. Bf4 {[%clk 0:01:50.7]} 26... Kg8 {[%clk 0:00:12.9]}
27. Rxh5 {[%clk 0:01:41.3]} 27... gxh5 {[%clk 0:00:13.8]} 28. g6 {[%clk
0:01:39.8]} 28... Qd7 {[%clk 0:00:04.9]} 29. gxf7+ {[%clk 0:01:31.3]} 29... Qxf7
{[%clk 0:00:05.8]} 30. Rg1+ {[%clk 0:01:30.6]} 30... Kh8 {[%clk 0:00:05.8]} 31.
Qf5 {[%clk 0:01:30.7]} 31... Ne6 {[%clk 0:00:04.7]} 32. Rh1 {[%clk 0:01:28.3]}
32... Ng7 {[%clk 0:00:02.1]} 33. Qg5 {[%clk 0:01:27.2]} 33... Kg8 {[%clk
0:00:01.8]} 34. e4 {[%clk 0:01:23.8]} 34... dxe4 {[%clk 0:00:01.6]} 35. Nxe4
{[%clk 0:01:23.6]} 35... Qc4+ {[%clk 0:00:02.2]} 36. Kb1 {[%clk 0:01:23.9]}
36... Qxe4+ {[%clk 0:00:02.5]} 37. Kc1 {[%clk 0:01:19.9]} 37... Qxh1+ {[%clk
0:00:03.4]} 38. Kd2 {[%clk 0:01:20.6]} 38... Qd5+ {[%clk 0:00:02.6]} 39. Ke3
{[%clk 0:01:21.5]} 39... Rad8 {[%clk 0:00:01.5]} 40. f7+ {[%clk 0:01:21.3]}
40... Kxf7 {[%clk 0:00:01.7]} 41. Qf6+ {[%clk 0:01:21.4]} 41... Kg8 {[%clk
0:00:02.6]} 42. Qd6 {[%clk 0:01:22]} 42... Qxd6 {[%clk 0:00:02.7]} 0-1

[Event "Early-Titled-Tuesday-Blitz-July-09-2024"]
[Site "Chess.com"]
[Date "2024.07.09"]
[Round "4"]
[White "RedFirePanda"]
[Black "LewAnatol"]
[Result "1-0"]
[WhiteElo "2467"]
[BlackElo "2178"]
[TimeControl "180+1"]
[EndTime "8:38:49 PDT"]
[Termination "RedFirePanda won on time"]

1. d4 {[%clk 0:03:00.9]} 1... d5 {[%clk 0:02:57.7]} 2. Bf4 {[%clk 0:03:00.3]}
2... c5 {[%clk 0:02:56.6]} 3. c3 {[%clk 0:02:57.1]} 3... Qb6 {[%clk 0:02:51.1]}
4. Qb3 {[%clk 0:02:56.7]} 4... e6 {[%clk 0:02:46.7]} 5. e3 {[%clk 0:02:53.7]}
5... c4 {[%clk 0:02:45.1]} 6. Qc2 {[%clk 0:02:53.3]} 6... Nf6 {[%clk 0:02:41.8]}
7. Nd2 {[%clk 0:02:52.8]} 7... Bd6 {[%clk 0:02:39.9]} 8. Bg3 {[%clk 0:02:51.1]}
8... Bxg3 {[%clk 0:02:37]} 9. hxg3 {[%clk 0:02:52]} 9... Qc6 {[%clk 0:02:35.5]}
10. Ngf3 {[%clk 0:02:51.3]} 10... Nbd7 {[%clk 0:02:33.5]} 11. Be2 {[%clk
0:02:46.2]} 11... b5 {[%clk 0:02:32.7]} 12. a4 {[%clk 0:02:42.4]} 12... a6
{[%clk 0:02:27.8]} 13. O-O {[%clk 0:02:41.9]} 13... Rb8 {[%clk 0:02:23.8]} 14.
b3 {[%clk 0:02:38.3]} 14... O-O {[%clk 0:02:04.9]} 15. Rfb1 {[%clk 0:02:26.8]}
15... Ne8 {[%clk 0:01:40.2]} 16. e4 {[%clk 0:02:09.8]} 16... Nd6 {[%clk
0:01:37.3]} 17. e5 {[%clk 0:02:05.7]} 17... Ne4 {[%clk 0:01:35]} 18. Nxe4 {[%clk
0:02:04.3]} 18... dxe4 {[%clk 0:01:34.8]} 19. Nd2 {[%clk 0:02:02.7]} 19... cxb3
{[%clk 0:01:29.1]} 20. Rxb3 {[%clk 0:02:00.2]} 20... f5 {[%clk 0:01:22.6]} 21.
exf6 {[%clk 0:01:54.6]} 21... Nxf6 {[%clk 0:01:20.1]} 22. axb5 {[%clk
0:01:53.4]} 22... axb5 {[%clk 0:01:19.2]} 23. Rab1 {[%clk 0:01:46.3]} 23... e3
{[%clk 0:01:05.3]} 24. fxe3 {[%clk 0:01:41.1]} 24... Ba6 {[%clk 0:00:23]} 25. c4
{[%clk 0:01:32.3]} 25... Rbc8 {[%clk 0:00:21.3]} 26. Qa2 {[%clk 0:01:26.3]}
26... bxc4 {[%clk 0:00:19.3]} 27. Rb6 {[%clk 0:01:25.9]} 27... Qc7 {[%clk
0:00:03.6]} 28. Rxa6 {[%clk 0:01:17.3]} 28... Qxg3 {[%clk 0:00:03.3]} 29. Bf3
{[%clk 0:01:05.5]} 29... Ng4 {[%clk 0:00:01.2]} 30. Nf1 {[%clk 0:00:54]} 1-0

[Event "Early-Titled-Tuesday-Blitz-July-09-2024"]
[Site "Chess.com"]
[Date "2024.07.09"]
[Round "4"]
[White "Evan_Attaker"]
[Black "esskeettit"]
[Result "1-0"]
[WhiteElo "2744"]
[BlackElo "2535"]
[TimeControl "180+1"]
[EndTime "8:38:50 PDT"]
[Termination "Evan_Attaker won by resignation"]

1. a3 {[%clk 0:03:00.8]} 1... d5 {[%clk 0:02:58.2]} 2. Nf3 {[%clk 0:02:58.9]}
2... Nf6 {[%clk 0:02:57.2]} 3. c4 {[%clk 0:02:56.4]} 3... e6 {[%clk 0:02:56]} 4.
e3 {[%clk 0:02:55.4]} 4... Be7 {[%clk 0:02:56.1]} 5. b3 {[%clk 0:02:51.1]} 5...
O-O {[%clk 0:02:56.2]} 6. Bb2 {[%clk 0:02:51]} 6... c5 {[%clk 0:02:56.9]} 7. Be2
{[%clk 0:02:50.1]} 7... Nc6 {[%clk 0:02:57.1]} 8. d3 {[%clk 0:02:49.8]} 8... b6
{[%clk 0:02:55.7]} 9. O-O {[%clk 0:02:48.7]} 9... Bb7 {[%clk 0:02:56.2]} 10.
Nbd2 {[%clk 0:02:47.4]} 10... Nd7 {[%clk 0:02:49.2]} 11. Qc2 {[%clk 0:02:45.9]}
11... Bf6 {[%clk 0:02:49.5]} 12. Rac1 {[%clk 0:02:45.4]} 12... Bxb2 {[%clk
0:02:49.3]} 13. Qxb2 {[%clk 0:02:46.3]} 13... Qf6 {[%clk 0:02:49.6]} 14. Qc2
{[%clk 0:02:45.7]} 14... Nde5 {[%clk 0:02:48.3]} 15. Rfe1 {[%clk 0:02:42]} 15...
dxc4 {[%clk 0:02:44.4]} 16. Nxc4 {[%clk 0:02:38.5]} 16... Rfd8 {[%clk
0:02:29.7]} 17. Red1 {[%clk 0:02:30.1]} 17... Rd7 {[%clk 0:02:07.3]} 18. Ncxe5
{[%clk 0:02:11.2]} 18... Nxe5 {[%clk 0:02:08.2]} 19. Nxe5 {[%clk 0:02:12.1]}
19... Qxe5 {[%clk 0:02:07.8]} 20. b4 {[%clk 0:02:12.5]} 20... cxb4 {[%clk
0:01:51.7]} 21. axb4 {[%clk 0:02:13.4]} 21... h5 {[%clk 0:01:50.5]} 22. d4
{[%clk 0:02:10.1]} 22... Qg5 {[%clk 0:01:48.9]} 23. Bf1 {[%clk 0:02:07.9]} 23...
h4 {[%clk 0:01:47.1]} 24. h3 {[%clk 0:01:57.9]} 24... Rad8 {[%clk 0:01:43.4]}
25. b5 {[%clk 0:01:51.5]} 25... Qh5 {[%clk 0:00:54.4]} 26. Ra1 {[%clk 0:01:43]}
26... e5 {[%clk 0:00:43.8]} 27. Rxa7 {[%clk 0:01:37.1]} 27... exd4 {[%clk
0:00:42.9]} 28. Rxd4 {[%clk 0:01:30]} 28... Rxd4 {[%clk 0:00:38.4]} 29. exd4
{[%clk 0:01:30.9]} 29... Qd5 {[%clk 0:00:26.7]} 30. Qc7 {[%clk 0:01:25.9]} 30...
Rd7 {[%clk 0:00:27]} 31. Qxb6 {[%clk 0:01:24.4]} 31... Re7 {[%clk 0:00:20.4]}
32. Qc5 {[%clk 0:01:17.3]} 32... Qe4 {[%clk 0:00:20.5]} 33. b6 {[%clk
0:01:04.9]} 33... g6 {[%clk 0:00:21]} 34. Ra3 {[%clk 0:01:00.7]} 34... Qb1
{[%clk 0:00:20.6]} 35. Qxe7 {[%clk 0:00:59.4]} 1-0

[Event "Early-Titled-Tuesday-Blitz-July-09-2024"]
[Site "Chess.com"]
[Date "2024.07.09"]
[Round "4"]
[White "ljuks68"]
[Black "PedroGil25"]
[Result "0-1"]
[WhiteElo "2402"]
[BlackElo "2626"]
[TimeControl "180+1"]
[EndTime "8:38:51 PDT"]
[Termination "PedroGil25 won by resignation"]

1. e4 {[%clk 0:03:00.9]} 1... c5 {[%clk 0:03:00.1]} 2. Nf3 {[%clk 0:03:00.6]}
2... e6 {[%clk 0:02:57.2]} 3. d4 {[%clk 0:03:00.8]} 3... cxd4 {[%clk 0:02:58.1]}
4. Nxd4 {[%clk 0:02:59.9]} 4... a6 {[%clk 0:02:58.3]} 5. Bd3 {[%clk 0:02:57.2]}
5... Bc5 {[%clk 0:02:56.1]} 6. Nb3 {[%clk 0:02:56.8]} 6... Ba7 {[%clk
0:02:56.7]} 7. c4 {[%clk 0:02:57]} 7... Nf6 {[%clk 0:02:56.8]} 8. Nc3 {[%clk
0:02:55.6]} 8... Qc7 {[%clk 0:02:56.6]} 9. O-O {[%clk 0:02:53.3]} 9... d6 {[%clk
0:02:56.5]} 10. Bg5 {[%clk 0:02:51.6]} 10... Nbd7 {[%clk 0:02:55.6]} 11. Rc1
{[%clk 0:02:48.2]} 11... O-O {[%clk 0:02:55.5]} 12. Qd2 {[%clk 0:02:45.9]} 12...
Ne5 {[%clk 0:02:25.1]} 13. Bxf6 {[%clk 0:02:40]} 13... gxf6 {[%clk 0:02:26]} 14.
Kh1 {[%clk 0:02:36.6]} 14... Bd7 {[%clk 0:02:19.9]} 15. f4 {[%clk 0:02:30.9]}
15... Nxd3 {[%clk 0:02:18.9]} 16. Qxd3 {[%clk 0:02:30.3]} 16... Rac8 {[%clk
0:02:19.5]} 17. Ne2 {[%clk 0:02:22.3]} 17... Kh8 {[%clk 0:02:17.4]} 18. Ng3
{[%clk 0:02:15.9]} 18... Bc6 {[%clk 0:02:03.9]} 19. f5 {[%clk 0:01:29.8]} 19...
Qe7 {[%clk 0:01:59.8]} 20. Nd4 {[%clk 0:01:22.8]} 20... Bd7 {[%clk 0:01:32.4]}
21. Nc2 {[%clk 0:00:58]} 21... Rg8 {[%clk 0:01:30.2]} 22. Ne3 {[%clk 0:00:53.2]}
22... Rg5 {[%clk 0:01:21.4]} 23. Rfd1 {[%clk 0:00:52.5]} 23... Bc5 {[%clk
0:01:18.1]} 24. Nef1 {[%clk 0:00:44.9]} 24... Rcg8 {[%clk 0:01:16.9]} 25. a3
{[%clk 0:00:44.1]} 25... a5 {[%clk 0:01:12.4]} 26. Nd2 {[%clk 0:00:43]} 26... a4
{[%clk 0:01:07.5]} 27. Nf3 {[%clk 0:00:40.9]} 27... Rg4 {[%clk 0:00:58.1]} 28.
Nd4 {[%clk 0:00:39.3]} 28... e5 {[%clk 0:00:56.1]} 29. Nc2 {[%clk 0:00:36.4]}
29... Bc6 {[%clk 0:00:51.5]} 30. Ne3 {[%clk 0:00:35]} 30... Rxg3 {[%clk
0:00:47.9]} 31. hxg3 {[%clk 0:00:33.2]} 31... Qf8 {[%clk 0:00:44.1]} 32. Kg1
{[%clk 0:00:22.3]} 32... Rxg3 {[%clk 0:00:42.5]} 33. Re1 {[%clk 0:00:22.3]}
33... Qh6 {[%clk 0:00:41.6]} 0-1

[Event "Early-Titled-Tuesday-Blitz-July-09-2024"]
[Site "Chess.com"]
[Date "2024.07.09"]
[Round "4"]
[White "lindsay790"]
[Black "KorolDimitriy75"]
[Result "0-1"]
[WhiteElo "2128"]
[BlackElo "2391"]
[TimeControl "180+1"]
[EndTime "8:38:54 PDT"]
[Termination "KorolDimitriy75 won by checkmate"]

1. e4 {[%clk 0:03:00.9]} 1... c5 {[%clk 0:03:00.1]} 2. Nf3 {[%clk 0:02:59.7]}
2... d6 {[%clk 0:03:00.5]} 3. d4 {[%clk 0:02:58.7]} 3... cxd4 {[%clk 0:03:01.4]}
4. Nxd4 {[%clk 0:02:58.6]} 4... Nf6 {[%clk 0:03:01.7]} 5. Nc3 {[%clk 0:02:57.7]}
5... g6 {[%clk 0:03:02.6]} 6. f3 {[%clk 0:02:54.4]} 6... Bg7 {[%clk 0:03:03.1]}
7. Be3 {[%clk 0:02:54.8]} 7... O-O {[%clk 0:03:03.9]} 8. Qd2 {[%clk 0:02:54.8]}
8... Nc6 {[%clk 0:03:04.6]} 9. Bc4 {[%clk 0:02:52.5]} 9... Bd7 {[%clk
0:03:04.4]} 10. O-O-O {[%clk 0:02:45.9]} 10... Qa5 {[%clk 0:03:04.1]} 11. Bb3
{[%clk 0:02:34.2]} 11... Rfc8 {[%clk 0:02:52.7]} 12. g4 {[%clk 0:02:25]} 12...
Ne5 {[%clk 0:02:52.1]} 13. h4 {[%clk 0:02:09.2]} 13... b5 {[%clk 0:02:51.5]} 14.
h5 {[%clk 0:01:37.4]} 14... Nc4 {[%clk 0:02:50.5]} 15. Bxc4 {[%clk 0:01:32.4]}
15... bxc4 {[%clk 0:02:51.4]} 16. hxg6 {[%clk 0:01:20.6]} 16... fxg6 {[%clk
0:02:52.3]} 17. g5 {[%clk 0:01:05.1]} 17... Nh5 {[%clk 0:02:51.8]} 18. Rxh5
{[%clk 0:01:01.2]} 18... gxh5 {[%clk 0:02:50.2]} 19. Qh2 {[%clk 0:00:50.5]}
19... Rab8 {[%clk 0:01:41.3]} 20. Qxh5 {[%clk 0:00:17.5]} 20... Rxb2 {[%clk
0:01:17.7]} 21. Nd5 {[%clk 0:00:15.2]} 21... c3 {[%clk 0:00:47.3]} 22. Nxe7+
{[%clk 0:00:14.4]} 22... Kf8 {[%clk 0:00:38.6]} 23. Nxc8 {[%clk 0:00:10.3]}
23... Qa3 {[%clk 0:00:36.7]} 24. Nb5 {[%clk 0:00:02.2]} 24... Rb1+ {[%clk
0:00:36.2]} 25. Kxb1 {[%clk 0:00:01.6]} 25... Qb2# {[%clk 0:00:37.1]} 0-1

[Event "Early-Titled-Tuesday-Blitz-July-09-2024"]
[Site "Chess.com"]
[Date "2024.07.09"]
[Round "4"]
[White "zverr1"]
[Black "Yaacovn"]
[Result "0-1"]
[WhiteElo "2557"]
[BlackElo "2785"]
[TimeControl "180+1"]
[EndTime "8:38:58 PDT"]
[Termination "Yaacovn won by checkmate"]

1. e4 {[%clk 0:03:00.9]} 1... c6 {[%clk 0:03:00.1]} 2. d4 {[%clk 0:03:00.9]}
2... d5 {[%clk 0:03:01]} 3. Nc3 {[%clk 0:03:01.5]} 3... dxe4 {[%clk 0:03:01.3]}
4. Nxe4 {[%clk 0:03:02.4]} 4... Nf6 {[%clk 0:03:01.9]} 5. Nxf6+ {[%clk
0:03:02.9]} 5... gxf6 {[%clk 0:03:02.8]} 6. g3 {[%clk 0:03:02.2]} 6... Qd5
{[%clk 0:03:02.7]} 7. Nf3 {[%clk 0:02:59.8]} 7... Bf5 {[%clk 0:03:02.7]} 8. c3
{[%clk 0:02:40.5]} 8... Qe4+ {[%clk 0:03:02.7]} 9. Be3 {[%clk 0:02:36.3]} 9...
Qc2 {[%clk 0:03:03]} 10. Qxc2 {[%clk 0:02:34.5]} 10... Bxc2 {[%clk 0:03:03.9]}
11. Bg2 {[%clk 0:02:35.3]} 11... Be4 {[%clk 0:03:03.8]} 12. O-O {[%clk
0:02:34.3]} 12... Nd7 {[%clk 0:03:04.3]} 13. Nh4 {[%clk 0:02:31]} 13... Bxg2
{[%clk 0:02:59.8]} 14. Kxg2 {[%clk 0:02:31.9]} 14... e6 {[%clk 0:03:00.2]} 15.
Bf4 {[%clk 0:02:31]} 15... Nb6 {[%clk 0:03:00.6]} 16. Rad1 {[%clk 0:02:25.7]}
16... O-O-O {[%clk 0:02:59.7]} 17. Rfe1 {[%clk 0:02:24.2]} 17... Rg8 {[%clk
0:02:57.4]} 18. a3 {[%clk 0:02:22.4]} 18... Nd5 {[%clk 0:02:56.7]} 19. Bc1
{[%clk 0:02:22]} 19... Be7 {[%clk 0:02:56.6]} 20. c4 {[%clk 0:02:12.7]} 20...
Nb6 {[%clk 0:02:56.3]} 21. b3 {[%clk 0:02:12.7]} 21... h5 {[%clk 0:02:47.1]} 22.
Bb2 {[%clk 0:01:51.8]} 22... a5 {[%clk 0:02:43.6]} 23. a4 {[%clk 0:01:45.3]}
23... Bb4 {[%clk 0:02:40.5]} 24. Re3 {[%clk 0:01:45.2]} 24... Nd7 {[%clk
0:02:39.7]} 25. Rdd3 {[%clk 0:01:28.3]} 25... f5 {[%clk 0:02:37.8]} 26. f4
{[%clk 0:01:18]} 26... Nf6 {[%clk 0:02:33.6]} 27. d5 {[%clk 0:01:01.3]} 27...
Ng4 {[%clk 0:02:22.7]} 28. Rf3 {[%clk 0:00:56]} 28... Be7 {[%clk 0:02:18]} 29.
Rd2 {[%clk 0:00:23.7]} 29... Bxh4 {[%clk 0:02:04.8]} 30. gxh4 {[%clk 0:00:23.9]}
30... exd5 {[%clk 0:01:38.3]} 31. cxd5 {[%clk 0:00:12.5]} 31... Nf6+ {[%clk
0:01:38.5]} 32. Rg3 {[%clk 0:00:12.5]} 32... Ne4 {[%clk 0:01:28.4]} 33. Rd3
{[%clk 0:00:03]} 33... Nxg3 {[%clk 0:01:26.3]} 34. hxg3 {[%clk 0:00:02.1]} 34...
Rxd5 {[%clk 0:01:26.5]} 35. Rxd5 {[%clk 0:00:02.5]} 35... cxd5 {[%clk 0:01:27]}
36. Kf3 {[%clk 0:00:03.2]} 36... Re8 {[%clk 0:01:26.6]} 37. Be5 {[%clk
0:00:03.5]} 37... Kd7 {[%clk 0:01:27.1]} 38. Ke3 {[%clk 0:00:03.5]} 38... f6
{[%clk 0:01:27.7]} 39. Kd4 {[%clk 0:00:03.4]} 39... fxe5+ {[%clk 0:01:28.1]} 40.
fxe5 {[%clk 0:00:04.3]} 40... Ke6 {[%clk 0:01:28.6]} 41. g4 {[%clk 0:00:04.8]}
41... fxg4 {[%clk 0:01:28.5]} 42. b4 {[%clk 0:00:05.4]} 42... b6 {[%clk
0:01:27.5]} 43. b5 {[%clk 0:00:05.3]} 43... Rf8 {[%clk 0:01:26.5]} 44. Ke3
{[%clk 0:00:05.7]} 44... Kxe5 {[%clk 0:01:27]} 45. Kd3 {[%clk 0:00:06]} 45... g3
{[%clk 0:01:27.5]} 46. Ke2 {[%clk 0:00:06.9]} 46... g2 {[%clk 0:01:27.9]} 47.
Kd3 {[%clk 0:00:07.8]} 47... g1=Q {[%clk 0:01:28.4]} 48. Kd2 {[%clk 0:00:08.5]}
48... Qg4 {[%clk 0:01:28.8]} 49. Ke3 {[%clk 0:00:08.8]} 49... Qxh4 {[%clk
0:01:29.3]} 50. Ke2 {[%clk 0:00:08.6]} 50... Qd8 {[%clk 0:01:29.4]} 51. Kd2
{[%clk 0:00:09.5]} 51... h4 {[%clk 0:01:29.9]} 52. Kd3 {[%clk 0:00:10.3]} 52...
h3 {[%clk 0:01:30.5]} 53. Kc3 {[%clk 0:00:11.2]} 53... h2 {[%clk 0:01:31]} 54.
Kc2 {[%clk 0:00:12.1]} 54... Qg5 {[%clk 0:01:27.7]} 55. Kb3 {[%clk 0:00:13]}
55... Rf3+ {[%clk 0:01:27.2]} 56. Kb2 {[%clk 0:00:13.9]} 56... Qg2+ {[%clk
0:01:27.4]} 57. Kb1 {[%clk 0:00:14]} 57... h1=Q# {[%clk 0:01:27.6]} 0-1

[Event "Early-Titled-Tuesday-Blitz-July-09-2024"]
[Site "Chess.com"]
[Date "2024.07.09"]
[Round "4"]
[White "tarno17"]
[Black "Payyappat"]
[Result "0-1"]
[WhiteElo "2181"]
[BlackElo "2411"]
[TimeControl "180+1"]
[EndTime "8:38:59 PDT"]
[Termination "Payyappat won by checkmate"]

1. e4 {[%clk 0:03:00.9]} 1... c6 {[%clk 0:02:59.7]} 2. d4 {[%clk 0:02:59.4]}
2... d5 {[%clk 0:03:00.6]} 3. Nc3 {[%clk 0:02:58.1]} 3... dxe4 {[%clk
0:03:00.4]} 4. Nxe4 {[%clk 0:02:57.8]} 4... Nf6 {[%clk 0:03:00.3]} 5. Ng5 {[%clk
0:02:54.4]} 5... h6 {[%clk 0:02:52.1]} 6. Nxf7 {[%clk 0:02:49.3]} 6... Kxf7
{[%clk 0:02:53]} 7. Nf3 {[%clk 0:02:49.6]} 7... Be6 {[%clk 0:02:44.4]} 8. Ne5+
{[%clk 0:02:22]} 8... Kg8 {[%clk 0:02:38.3]} 9. Bd3 {[%clk 0:02:19.5]} 9... Nbd7
{[%clk 0:02:36.6]} 10. Ng6 {[%clk 0:02:15.8]} 10... Bf7 {[%clk 0:02:28.9]} 11.
Nxh8 {[%clk 0:02:04]} 11... Kxh8 {[%clk 0:02:29.8]} 12. O-O {[%clk 0:02:03.9]}
12... e5 {[%clk 0:02:28.4]} 13. Be3 {[%clk 0:01:53]} 13... Bd6 {[%clk
0:02:11.6]} 14. Bf5 {[%clk 0:01:41.1]} 14... Bc7 {[%clk 0:01:19.1]} 15. Qf3
{[%clk 0:01:18.8]} 15... exd4 {[%clk 0:00:55.9]} 16. Bxd4 {[%clk 0:01:15]} 16...
Ne5 {[%clk 0:00:55.4]} 17. Qc3 {[%clk 0:01:07.4]} 17... Nd5 {[%clk 0:00:51.5]}
18. Qh3 {[%clk 0:00:58.3]} 18... Nf4 {[%clk 0:00:46.7]} 19. Qe3 {[%clk
0:00:38.9]} 19... Qxd4 {[%clk 0:00:44.7]} 20. Qxd4 {[%clk 0:00:15.8]} 20... Ne2+
{[%clk 0:00:43.3]} 21. Kh1 {[%clk 0:00:16.7]} 21... Nxd4 {[%clk 0:00:44.1]} 22.
Rad1 {[%clk 0:00:15]} 22... Nxf5 {[%clk 0:00:43.8]} 23. f4 {[%clk 0:00:10.6]}
23... Ng4 {[%clk 0:00:42.4]} 24. Rd7 {[%clk 0:00:10.5]} 24... Bc4 {[%clk
0:00:38.2]} 25. Rb1 {[%clk 0:00:05]} 25... Bb6 {[%clk 0:00:37.1]} 26. h3 {[%clk
0:00:04.6]} 26... Ng3# {[%clk 0:00:36.4]} 0-1